fUSD/lending_fUSD_20251201
["ID","MTS","AMOUNT","RATE_DAILY","PERIOD"]
[395296988,1764594694962,1000.0,4.8e-07,2]
[395296989,1764594699214,1000.0,4.8e-07,2]
[395296995,1764594796965,-396.94252893,0.00012281,2]
[395297046,1764595319257,204.655868,0.00025,120]
[395297047,1764595418143,31055.76734847,0.00012281,10]
[395297059,1764595586059,150.0,0.00022,30]
[395297073,1764595636548,-103.05747107,0.00012281,2]
[395297074,1764595636572,-196.94252893,0.0001351,2]
[395297076,1764595639127,-124.27087748,0.0001351,2]
[395297077,1764595639150,-75.8630652,0.0001351,2]
[395297078,1764595643853,-179.96340613,0.00012181,2]
[395297079,1764595645325,-180.49117804,0.00012181,2]
[395297081,1764595698116,600.02902171,0.0001,2]
[395297106,1764595830042,300.0,0.00022,30]
[395297111,1764595832239,-139.54541583,0.00012181,2]
[395297112,1764595832249,-224.86731262,0.000134,2]
[395297113,1764595832258,-300.0,0.00013748,2]
[395297114,1764595832267,-300.0,0.00013748,2]
[395297115,1764595832277,-300.0,0.00013748,2]
[395297116,1764595832287,-300.0,0.00013748,2]
[395297117,1764595832297,-300.0,0.00013748,2]
[395297118,1764595832306,-151.29299908,0.0001392,2]
[395297119,1764595832320,-300.0,0.00014019,2]
[395297120,1764595832331,-1200.0,0.00014019,2]
[395297121,1764595832340,-300.0,0.00014019,2]
[395297122,1764595832349,-2108.373604,0.00014528,2]
[395297123,1764595832357,-284.91,0.00014602,2]
[395297124,1764595832366,-1000.0,0.0001467,2]
[395297125,1764595832376,-663.03,0.00014807,2]
[395297126,1764595832385,-916.65144747,0.00014915,2]
[395297127,1764595832429,-83.34855253,0.00014915,2]
[395297128,1764595832437,-1000.0,0.00014915,2]
[395297129,1764595832446,-501.63692659,0.00014973,2]
[395297130,1764595832455,-4110.84,0.00015254,2]
[395297131,1764595832465,-498.0,0.00015272,2]
[395297132,1764595832474,-1651.87712558,0.00015303,2]
[395297133,1764595832484,-223.65,0.00015307,2]
[395297134,1764595832493,-420.0,0.00015358,2]
[395297135,1764595832502,-999.0,0.00015389,3]
[395297136,1764595832511,-1680.0,0.00015421,2]
[395297137,1764595832520,-1248.52,0.00015448,2]
[395297139,1764595832529,-65.02404495,0.00015658,2]
[395297140,1764595832540,-101.63595505,0.00015658,2]
[395297141,1764595832550,-1000.0,0.00015789,2]
[395297142,1764595832559,-300.0,0.00015832,2]
[395297143,1764595832568,-311.1,0.00015832,2]
[395297144,1764595832577,-1605.01610561,0.00015832,2]
[395297165,1764595838355,-411.35130193,0.00015832,2]
[395297166,1764595838364,-2750.0,0.00015832,2]
[395297167,1764595838374,-1041.53388498,0.00015832,2]
[395297168,1764595838383,-578.20924308,0.00015832,2]
[395297176,1764595838747,-248.71531821,0.00015832,2]
[395297177,1764595838763,-2750.0,0.00015887,2]
[395297178,1764595838772,-244.61630524,0.00015941,2]
[395297179,1764595838782,-2750.0,0.00015942,2]
[395297180,1764595838792,-844.36540699,0.00015952,2]
[395297181,1764595838801,-500.0,0.00015973,2]
[395297182,1764595838811,-500.0,0.00015973,2]
[395297183,1764595838821,-500.0,0.00015973,2]
[395297184,1764595838832,-500.0,0.00015973,2]
[395297185,1764595838841,-338.74802037,0.00015973,2]
[395297186,1764595838851,-500.0,0.00015973,2]
[395297187,1764595838861,-230.20656864,0.00015973,2]
[395297188,1764595838871,-500.0,0.00015973,2]
[395297189,1764595838884,-160.09311838,0.00015973,2]
[395297190,1764595838894,-207.34062351,0.00015973,2]
[395297191,1764595838904,-500.0,0.00015973,2]
[395297192,1764595838914,-500.0,0.00015973,2]
[395297193,1764595838924,-500.0,0.00015973,2]
[395297194,1764595838933,-500.0,0.00015973,2]
[395297195,1764595838943,-500.0,0.00015973,2]
[395297196,1764595838952,-500.0,0.00015973,2]
[395297197,1764595838964,-500.0,0.00015973,2]
[395297198,1764595838973,-500.0,0.00015973,2]
[395297199,1764595838983,-500.0,0.00015973,2]
[395297200,1764595838994,-500.0,0.00015973,2]
[395297201,1764595839003,-500.0,0.00015973,2]
[395297202,1764595839013,-528.45686028,0.00015973,2]
[395297203,1764595839022,-500.0,0.00015973,2]
[395297204,1764595839032,-506.68012113,0.00015973,2]
[395297205,1764595839041,-500.0,0.00015973,2]
[395297206,1764595839051,-160.09865388,0.00015973,2]
[395297207,1764595839061,-500.0,0.00015973,2]
[395297208,1764595839071,-500.0,0.00015973,2]
[395297209,1764595839081,-500.0,0.00015973,2]
[395297210,1764595839091,-584.314899,0.00015973,2]
[395297211,1764595839100,-500.0,0.00015973,2]
[395297212,1764595839110,-160.09684565,0.00015973,2]
[395297213,1764595839119,-650.88,0.00015973,2]
[395297214,1764595839131,-295.79603794,0.00015973,2]
[395297215,1764595839142,-2750.0,0.00015997,2]
[395297216,1764595839151,-348.37261827,0.00015999,2]
[395297217,1764595839161,-518.10579709,0.00016,5]
[395297218,1764595839171,-31822.55119846,0.00016,4]
[395297222,1764595840229,-43080.66783922,0.00016,4]
[395297223,1764595840412,-17235.0,0.00016,4]
[395297224,1764595840423,-840.26196603,0.00016,4]
[395297226,1764595840441,-26482.07988001,0.00016,4]
[395297228,1764595840452,-628.62861288,0.00016,4]
[395297229,1764595840462,-23800.0000001,0.00016,4]
[395297234,1764595840547,-118554.74749291,0.00016,4]
[395297236,1764595840556,-2000.0,0.00016,2]
[395297238,1764595840565,-2750.0,0.00016052,2]
[395297240,1764595840575,-844.36540692,0.00016087,2]
[395297242,1764595840584,-250.0,0.00016096,2]
[395297244,1764595840593,-2750.0,0.00016107,2]
[395297246,1764595840602,-223.65,0.00016157,2]
[395297248,1764595840611,-2750.0,0.00016162,2]
[395297250,1764595840620,-15000.00765911,0.000162,5]
[395297252,1764595840630,-2750.0,0.00016217,2]
[395297254,1764595840639,-200.0,0.0001622,2]
[395297256,1764595840649,-844.36540692,0.00016223,2]
[395297258,1764595840658,-151.29299907,0.00016238,2]
[395297260,1764595840668,-1923.61673128,0.00016238,2]
[395297263,1764595840677,-650.88,0.00016247,2]
[395297265,1764595840686,-2750.0,0.00016272,2]
[395297267,1764595840695,-166.66,0.00016304,2]
[395297270,1764595840704,-1923.61673122,0.00016312,2]
[395297271,1764595840713,-2750.0,0.00016327,2]
[395297272,1764595840722,-1414.92178151,0.00016338,2]
[395297273,1764595840731,-200.0,0.0001634,2]
[395297274,1764595840740,-844.36540692,0.00016358,2]
[395297275,1764595840750,-3031.1098809,0.00016379,2]
[395297276,1764595840759,-1923.61673122,0.00016385,2]
[395297277,1764595840768,-227.0,0.000164,2]
[395297278,1764595840777,-318.0,0.000164,2]
[395297279,1764595840786,-182.0,0.000164,2]
[395297281,1764595840796,-183.27980192,0.000164,2]
[395297282,1764595840805,-151.0,0.00016435,2]
[395297283,1764595840814,-500.0,0.00016438,2]
[395297284,1764595840824,-500.0,0.00016438,2]
[395297285,1764595840833,-500.0,0.00016438,2]
[395297286,1764595840842,-500.0,0.00016438,2]
[395297287,1764595840851,-500.0,0.00016438,2]
[395297288,1764595840860,-500.0,0.00016438,2]
[395297289,1764595840868,-500.0,0.00016438,2]
[395297290,1764595840879,-500.0,0.00016438,2]
[395297291,1764595840888,-500.0,0.00016438,2]
[395297292,1764595840897,-500.0,0.00016438,2]
[395297293,1764595840906,-500.0,0.00016438,2]
[395297294,1764595840915,-500.0,0.00016438,2]
[395297295,1764595840923,-500.0,0.00016438,2]
[395297296,1764595840932,-500.0,0.00016438,2]
[395297297,1764595840942,-620.49702801,0.00016438,2]
[395297298,1764595840955,-500.0,0.00016438,2]
[395297299,1764595840964,-500.0,0.00016438,2]
[395297300,1764595840973,-500.0,0.00016438,2]
[395297301,1764595840982,-500.0,0.00016438,2]
[395297302,1764595840992,-500.0,0.00016438,2]
[395297303,1764595841001,-500.0,0.00016438,2]
[395297304,1764595841010,-500.0,0.00016438,2]
[395297305,1764595841350,-500.0,0.00016438,2]
[395297306,1764595841380,-500.0,0.00016438,2]
[395297307,1764595841389,-500.0,0.00016438,2]
[395297308,1764595841398,-500.0,0.00016438,2]
[395297309,1764595841408,-500.0,0.00016438,2]
[395297310,1764595841417,-500.0,0.00016438,2]
[395297311,1764595841426,-500.0,0.00016438,2]
[395297312,1764595841435,-2439.67385563,0.00016438,2]
[395297313,1764595841444,-2439.67385563,0.00016438,2]
[395297314,1764595841452,-2439.67385563,0.00016438,2]
[395297315,1764595841461,-2439.67385563,0.00016438,2]
[395297316,1764595841470,-2439.67385563,0.00016438,2]
[395297317,1764595841479,-2439.67385563,0.00016438,2]
[395297318,1764595841488,-2439.67385563,0.00016438,2]
[395297319,1764595841497,-2439.67385563,0.00016438,2]
[395297320,1764595841507,-2439.67385563,0.00016438,2]
[395297321,1764595841516,-2439.67385563,0.00016438,2]
[395297322,1764595841525,-2439.67385563,0.00016438,2]
[395297323,1764595841534,-2439.67385563,0.00016438,2]
[395297324,1764595841543,-2439.67385563,0.00016438,2]
[395297325,1764595841551,-2439.67385563,0.00016438,2]
[395297326,1764595841560,-2439.67385563,0.00016438,2]
[395297327,1764595841569,-2439.67385563,0.00016438,2]
[395297328,1764595841578,-2439.67385563,0.00016438,2]
[395297329,1764595841587,-2439.67385563,0.00016438,2]
[395297330,1764595841596,-2439.67385563,0.00016438,2]
[395297331,1764595841605,-2439.67385563,0.00016438,2]
[395297332,1764595841614,-2439.67385563,0.00016438,2]
[395297333,1764595841623,-2439.67385563,0.00016438,2]
[395297334,1764595841633,-2439.67385563,0.00016438,2]
[395297335,1764595841642,-2439.67385563,0.00016438,2]
[395297336,1764595841652,-2439.67385563,0.00016438,2]
[395297337,1764595841661,-2439.67385563,0.00016438,2]
[395297338,1764595841671,-2439.67385563,0.00016438,2]
[395297339,1764595841680,-2439.67385563,0.00016438,2]
[395297340,1764595841690,-2439.67385563,0.00016438,2]
[395297341,1764595841700,-2439.67385563,0.00016438,2]
[395297342,1764595841710,-2439.67385563,0.00016438,2]
[395297343,1764595841720,-2439.67385563,0.00016438,2]
[395297344,1764595841730,-2439.67385563,0.00016438,2]
[395297345,1764595841739,-2439.67385563,0.00016438,2]
[395297346,1764595841750,-2439.67385563,0.00016438,2]
[395297347,1764595841760,-2439.67385563,0.00016438,2]
[395297348,1764595841769,-2439.67385562,0.00016438,2]
[395297349,1764595841779,-2439.67385563,0.00016438,2]
[395297350,1764595841788,-2439.67385563,0.00016438,2]
[395297351,1764595841798,-2439.67385563,0.00016438,2]
[395297352,1764595841808,-2439.67385563,0.00016438,2]
[395297353,1764595841818,-2439.67385563,0.00016438,2]
[395297354,1764595841828,-2439.67385563,0.00016438,2]
[395297355,1764595841837,-2317.69016283,0.00016438,2]
[395297356,1764595841847,-2317.69016283,0.00016438,2]
[395297357,1764595841856,-2317.69016283,0.00016438,2]
[395297358,1764595841866,-2317.69016283,0.00016438,2]
[395297359,1764595841877,-2317.69016283,0.00016438,2]
[395297360,1764595841886,-2317.69016283,0.00016438,2]
[395297361,1764595841896,-2317.69016283,0.00016438,2]
[395297362,1764595841905,-2317.69016283,0.00016438,2]
[395297363,1764595841915,-2317.69016283,0.00016438,2]
[395297364,1764595841925,-2317.69016283,0.00016438,2]
[395297365,1764595841934,-2317.69016283,0.00016438,2]
[395297366,1764595841944,-2317.69016283,0.00016438,2]
[395297367,1764595841953,-2317.69016283,0.00016438,2]
[395297368,1764595841967,-2317.69016283,0.00016438,2]
[395297369,1764595841977,-2317.69016283,0.00016438,2]
[395297370,1764595841986,-2317.69016283,0.00016438,2]
[395297371,1764595841995,-2317.69016283,0.00016438,2]
[395297372,1764595842006,-2317.69016283,0.00016438,2]
[395297373,1764595842015,-1000.0,0.00016438,2]
[395297374,1764595842025,-217.40010715,0.00016438,2]
[395297375,1764595842035,-800.0,0.00016438,2]
[395297376,1764595842045,-1923.61673122,0.00016459,2]
[395297377,1764595842055,-162.85978352,0.00016473,2]
[395297378,1764595842064,-465.96204167,0.0001648,2]
[395297379,1764595842074,-844.36540692,0.00016494,2]
[395297380,1764595842083,-2268.325,0.000165,2]
[395297381,1764595842092,-169.265,0.000165,2]
[395297382,1764595842101,-200.0,0.00016509,2]
[395297383,1764595842110,-151.0,0.00016509,2]
[395297384,1764595842119,-2500.0,0.00016509,2]
[395297385,1764595842130,-6000.0,0.00016509,2]
[395297386,1764595842139,-151.0,0.00016509,2]
[395297387,1764595842148,-2500.0,0.00016509,2]
[395297388,1764595842157,-602.94574228,0.00016509,2]
[395297389,1764595842166,-514.84070869,0.00016509,2]
[395297390,1764595842175,-3003.97138181,0.00016509,2]
[395297391,1764595842185,-500.0,0.00016509,2]
[395297392,1764595842194,-500.0,0.00016509,2]
[395297393,1764595842204,-500.0,0.00016509,2]
[395297394,1764595842213,-151.0,0.00016509,2]
[395297395,1764595842222,-200.0,0.00016509,2]
[395297396,1764595842232,-200.0,0.00016509,2]
[395297397,1764595842241,-620.0,0.00016509,2]
[395297398,1764595842251,-500.0,0.00016509,2]
[395297399,1764595842260,-151.0,0.00016509,2]
[395297400,1764595842269,-151.0,0.00016509,2]
[395297401,1764595842279,-500.0,0.00016509,2]
[395297402,1764595842289,-151.0,0.00016509,2]
[395297403,1764595842299,-500.0,0.00016509,2]
[395297404,1764595842308,-151.0,0.00016509,2]
[395297405,1764595842318,-500.0,0.00016509,2]
[395297406,1764595842327,-151.0,0.00016509,2]
[395297407,1764595842337,-500.0,0.00016509,2]
[395297408,1764595842347,-151.0,0.00016509,2]
[395297409,1764595842356,-500.0,0.00016509,2]
[395297410,1764595842366,-151.0,0.00016509,2]
[395297411,1764595842375,-500.0,0.00016509,2]
[395297412,1764595842384,-151.0,0.00016509,2]
[395297413,1764595842393,-500.0,0.00016509,2]
[395297414,1764595842403,-500.0,0.00016509,2]
[395297415,1764595842412,-151.0,0.00016509,2]
[395297416,1764595842421,-151.0,0.00016509,2]
[395297417,1764595842431,-500.0,0.00016509,2]
[395297418,1764595842440,-151.0,0.00016509,2]
[395297419,1764595842449,-500.0,0.00016509,2]
[395297420,1764595842458,-151.0,0.00016509,2]
[395297421,1764595842468,-500.0,0.00016509,2]
[395297422,1764595842477,-151.0,0.00016509,2]
[395297423,1764595842486,-500.0,0.00016509,2]
[395297424,1764595842495,-151.0,0.00016509,2]
[395297425,1764595842504,-500.0,0.00016509,2]
[395297426,1764595842514,-500.0,0.00016509,2]
[395297427,1764595842523,-500.0,0.00016521,2]
[395297428,1764595842533,-1000.0,0.00016521,2]
[395297429,1764595842542,-562.08122642,0.00016521,2]
[395297430,1764595842551,-1012.29301847,0.00016521,2]
[395297431,1764595842561,-889.29317678,0.00016521,2]
[395297432,1764595842570,-339.96710079,0.00016521,2]
[395297433,1764595842579,-502.29656539,0.00016521,2]
[395297434,1764595842589,-1000.0,0.00016521,2]
[395297435,1764595842598,-1000.0,0.00016521,2]
[395297436,1764595842608,-1000.0,0.00016521,2]
[395297437,1764595842617,-654.71278352,0.00016521,2]
[395297438,1764595842626,-1000.0,0.00016521,2]
[395297439,1764595842635,-1000.0,0.00016521,2]
[395297440,1764595842645,-856.06806903,0.00016521,2]
[395297441,1764595842654,-650.88,0.00016521,2]
[395297442,1764595842664,-1923.61673122,0.00016532,2]
[395297443,1764595842673,-1923.61673122,0.00016606,2]
[395297444,1764595842683,-844.36540692,0.00016629,2]
[395297445,1764595842692,-371.0,0.00016658,2]
[395297446,1764595842701,-5617.553048,0.0001666,2]
[395297447,1764595842711,-427.65493559,0.00016673,2]
[395297448,1764595842720,-1923.61673122,0.00016679,2]
[395297449,1764595842730,-1000.0,0.000167,2]
[395297450,1764595842740,-1923.61673122,0.00016753,2]
[395297451,1764595842749,-844.36540692,0.00016765,2]
[395297452,1764595842759,-288.21734295,0.0001677,2]
[395297453,1764595842768,-1737.69823801,0.0001678,2]
[395297454,1764595842778,-650.88,0.00016795,2]
[395297455,1764595842788,-949.9539,0.000168,2]
[395297456,1764595842797,-280.8878,0.000168,2]
[395297457,1764595842807,-1014.38790361,0.000168,2]
[395297458,1764595842817,-10345.3711,0.000168,2]
[395297459,1764595842826,-2500.0,0.000168,2]
[395297460,1764595842836,-1000.0,0.000168,2]
[395297461,1764595842846,-299.0,0.00016801,2]
[395297462,1764595842855,-587.0,0.00016826,2]
[395297463,1764595842864,-1923.61673122,0.00016826,2]
[395297464,1764595842874,-2000.0,0.00016864,2]
[395297465,1764595842884,-200.0,0.00016864,2]
[395297466,1764595842893,-586.32304397,0.0001689,2]
[395297467,1764595842902,-151.0,0.00016897,2]
[395297468,1764595842912,-151.0,0.00016897,2]
[395297469,1764595842922,-2649.0442,0.000169,2]
[395297470,1764595842931,-760000.0,0.000169,2]
[395297471,1764595842940,-1359.94882568,0.000169,2]
[395297472,1764595842955,-160.32330704,0.000169,2]
[395297473,1764595842964,-430.2573,0.000169,2]
[395297474,1764595842974,-770.98304799,0.000169,2]
[395297475,1764595842983,-1923.61673122,0.000169,2]
[395297476,1764595842993,-1000.0,0.000169,2]
[395297477,1764595843002,-844.36540692,0.000169,2]
[395297478,1764595843013,-10740.0,0.000169,2]
[395297479,1764595843023,-703.0,0.00016946,2]
[395297481,1764595843033,-500.0,0.00016946,2]
[395297482,1764595843043,-500.0,0.00016946,2]
[395297483,1764595843052,-1169.0,0.00016946,2]
[395297484,1764595843061,-500.0,0.00016946,2]
[395297485,1764595843072,-226.93276728,0.00016946,2]
[395297486,1764595843080,-150.0,0.00016946,2]
[395297487,1764595843090,-150.0,0.00016946,2]
[395297488,1764595843101,-372.0,0.00016946,2]
[395297489,1764595843110,-500.0,0.00016946,2]
[395297490,1764595843119,-150.0,0.00016946,2]
[395297491,1764595843127,-150.0,0.00016946,2]
[395297492,1764595843136,-200.0,0.00016946,2]
[395297494,1764595843146,-500.0,0.00016946,2]
[395297497,1764595843155,-150.0,0.00016946,2]
[395297500,1764595843164,-500.0,0.00016946,2]
[395297502,1764595843173,-500.0,0.00016946,2]
[395297504,1764595843182,-371.0,0.00016946,2]
[395297506,1764595843191,-166.66,0.0001695,2]
[395297508,1764595843200,-371.0,0.00016953,2]
[395297510,1764595843209,-4631.02260028,0.00016957,2]
[395297511,1764595843218,-6164.0,0.00016959,2]
[395297512,1764595843227,-151.0,0.0001696,2]
[395297513,1764595843237,-865.3175898,0.00016963,2]
[395297514,1764595843246,-185184.0559254,0.00016963,2]
[395297515,1764595843255,-2351.0,0.00016963,2]
[395297516,1764595843264,-150.0,0.00016965,2]
[395297517,1764595843273,-207.02860173,0.00016965,2]
[395297518,1764595843282,-371.0,0.00016965,2]
[395297520,1764595843291,-16310.4859274,0.00016966,2]
[395297522,1764595843301,-586.32304397,0.0001699,2]
[395297524,1764595843311,-586.32304397,0.0001699,2]
[395297526,1764595843320,-236.31,0.00016992,2]
[395297527,1764595843329,-151.0,0.00016997,2]
[395297528,1764595843338,-24330.92134644,0.00016999,2]
[395297529,1764595843347,-300.0,0.00016999,2]
[395297530,1764595843356,-300.0,0.00016999,2]
[395297531,1764595843365,-300.0,0.00016999,2]
[395297532,1764595843374,-500.0,0.00016999,2]
[395297533,1764595843384,-300.0,0.00016999,2]
[395297534,1764595843393,-300.0,0.00016999,2]
[395297535,1764595843402,-776319.15309268,0.00017,2]
[395297536,1764595843419,-647.02799168,0.00017,2]
[395297537,1764595843431,-3401.2196552,0.00017,2]
[395297538,1764595843442,-596.298,0.00017,2]
[395297539,1764595843453,-245024.47071081,0.00017,2]
[395297540,1764595843462,-84907.86961158,0.00017,2]
[395297543,1764595843713,-169773.44911643,0.00017,2]
[395297544,1764595843725,-87817.87350778,0.00017,2]
[395297548,1764595846359,-720.55999997,0.000161,2]
[395297549,1764595846371,-603.61504426,0.000161,2]
[395297559,1764595855701,500.0,0.00025,120]
[395297562,1764595881197,500.0,0.00022,30]
[395297563,1764595954758,300.0,0.00022,30]
[395297575,1764596433664,500.0,0.00022,30]
[395297577,1764596492041,-239.53130829,0.00013699,2]
[395297578,1764596493913,-164.37742791,0.00013699,2]
[395297579,1764596495854,-289.19297102,0.00013699,2]
[395297580,1764596498627,1000.0,0.00022,30]
[395297589,1764596670721,510.77,7.283e-05,2]
[395297590,1764596670939,510.77,7.666e-05,2]
[395297591,1764596671153,510.77,8.05e-05,2]
[395297592,1764596671372,510.77,8.433e-05,2]
[395297593,1764596671558,510.77,8.816e-05,2]
[395297594,1764596671758,510.77,9.2e-05,2]
[395297595,1764596671955,510.77,9.583e-05,2]
[395297596,1764596672176,510.77,9.966e-05,2]
[395297597,1764596672370,510.77,0.0001035,2]
[395297598,1764596672561,510.77,0.00010733,2]
[395297599,1764596672745,510.77,0.00011116,2]
[395297600,1764596672965,510.77,0.00011499,2]
[395297601,1764596673162,510.77,0.00011883,2]
[395297602,1764596673377,159.99,0.00012266,2]
[395297603,1764596686861,-350.78,0.00012266,2]
[395297604,1764596686885,-149.22,0.00012649,2]
[395297605,1764596687983,-361.55,0.00012649,2]
[395297606,1764596688009,-64.56966787,0.00013033,2]
[395297607,1764596690489,-375.24886067,0.00013033,2]
[395297608,1764596692406,-70.95147146,0.00013033,2]
[395297609,1764596692429,-355.57544462,0.00013416,2]
[395297610,1764596698305,-500.0,0.0002639,120]
[395297611,1764596698353,-500.0,0.00027458,120]
[395297612,1764596698385,-473.83,0.00027468,120]
[395297613,1764596698417,-513.536164,0.00028808,120]
[395297614,1764596698451,-12.633836,0.0003,120]
[395297679,1764596768035,-319.2413128,0.00023,30]
[395297772,1764596897660,-321.92752616,0.00013416,2]
[395297773,1764596900253,-224.69724167,0.00013416,2]
[395297774,1764596902248,-201.43310583,0.00013416,2]
[395297775,1764596904849,-324.26006258,0.00013416,2]
[395297776,1764596908874,-511.28459694,0.00013416,2]
[395297777,1764596910261,-245.73222563,0.00013416,2]
[395297778,1764596916407,-500.0,0.00013416,2]
[395297918,1764597032369,-98.08524119,0.00013416,2]
[395297920,1764597032379,-155.19455538,0.00013416,2]
[395297922,1764597032389,-289.82829278,0.00013699,2]
[395297924,1764597032398,-510.77,0.00013799,2]
[395297926,1764597032407,-300.0,0.00013815,2]
[395297928,1764597032420,-287.62190265,0.00013815,2]
[395297930,1764597032432,-12.37809735,0.00013815,2]
[395297932,1764597032441,-193.62507971,0.00014174,2]
[395297934,1764597032450,-510.77,0.00014183,2]
[395297936,1764597032459,-150.0,0.00014454,2]
[395297938,1764597032468,-200.0,0.00014479,2]
[395297940,1764597032477,-208.93,0.00014556,2]
[395297942,1764597032486,-510.77,0.00014566,2]
[395297944,1764597032495,-195.0,0.00014758,2]
[395297946,1764597032504,-300.0,0.00014758,2]
[395297948,1764597032513,-300.0,0.00014758,2]
[395297950,1764597032522,-300.0,0.00014758,2]
[395297952,1764597032532,-195.0,0.00014758,2]
[395297954,1764597032542,-300.0,0.00014758,2]
[395297956,1764597032551,-1200.0,0.00014774,2]
[395297958,1764597032561,-603.31,0.00014775,2]
[395297961,1764597032571,-1443.14,0.00014818,2]
[395297962,1764597032581,-300.0,0.00014846,2]
[395297965,1764597032592,-300.0,0.00014846,2]
[395297966,1764597032602,-2376.61960518,0.00014849,2]
[395297969,1764597032614,-3515.38039482,0.00014849,2]
[395297971,1764597032623,-265.7932,0.00014873,2]
[395297973,1764597032632,-1514.09,0.00014972,2]
[395297975,1764597032642,-500.0,0.00014973,2]
[395297977,1764597032651,-500.0,0.00014973,2]
[395297979,1764597032660,-193.6250797,0.00014978,2]
[395297981,1764597032671,-150.0,0.00015056,2]
[395297983,1764597032680,-1149.8,0.00015056,2]
[395297985,1764597032690,-3762.53,0.00015056,2]
[395297987,1764597032699,-150.99,0.00015056,2]
[395297989,1764597032709,-200.0,0.00015175,2]
[395297991,1764597032718,-250.0,0.00015258,2]
[395297993,1764597032728,-625.55,0.00015283,2]
[395297995,1764597032738,-150.00000001,0.00015288,2]
[395297997,1764597032747,-150.0,0.00015288,2]
[395297999,1764597032757,-150.0,0.00015288,2]
[395298001,1764597032767,-150.0,0.00015288,2]
[395298003,1764597032776,-150.0,0.00015288,2]
[395298005,1764597032785,-150.0,0.00015288,2]
[395298007,1764597032794,-150.0,0.00015288,2]
[395298009,1764597032803,-150.0,0.00015288,2]
[395298011,1764597032812,-150.0,0.00015288,2]
[395298013,1764597032822,-150.0,0.00015288,2]
[395298015,1764597032831,-150.0,0.00015288,2]
[395298017,1764597032840,-150.0,0.00015288,2]
[395298019,1764597032851,-150.0,0.00015288,2]
[395298021,1764597032860,-150.0,0.00015288,2]
[395298023,1764597032869,-150.0,0.00015288,2]
[395298025,1764597032878,-150.0,0.00015288,2]
[395298027,1764597032887,-190.82998658,0.00015288,2]
[395298029,1764597032896,-1064.01,0.00015288,2]
[395298031,1764597032905,-150.0,0.00015309,2]
[395298033,1764597032914,-150.0,0.00015316,2]
[395298035,1764597032924,-150.0,0.00015328,2]
[395298037,1764597032933,-150.0,0.00015331,2]
[395298039,1764597032942,-150.0,0.00015335,2]
[395298041,1764597032951,-150.0,0.00015341,2]
[395298043,1764597032961,-150.0,0.00015344,2]
[395298045,1764597032970,-150.0,0.00015344,2]
[395298047,1764597032979,-150.0,0.00015352,2]
[395298049,1764597032988,-150.0,0.00015369,2]
[395298051,1764597032998,-150.0,0.00015373,2]
[395298053,1764597033007,-150.0,0.00015374,2]
[395298055,1764597033015,-152.99,0.00015379,2]
[395298057,1764597033025,-150.0,0.00015382,2]
[395298059,1764597033034,-150.0,0.00015394,2]
[395298061,1764597033043,-150.0,0.00015395,2]
[395298063,1764597033052,-150.0,0.00015401,2]
[395298065,1764597033061,-150.0,0.00015401,2]
[395298067,1764597033070,-150.0,0.00015401,2]
[395298069,1764597033079,-150.0,0.00015401,2]
[395298070,1764597033088,-150.0,0.00015409,2]
[395298073,1764597033097,-150.0,0.00015417,2]
[395298075,1764597033107,-150.0,0.00015429,2]
[395298077,1764597033116,-150.0,0.00015429,2]
[395298079,1764597033126,-150.0,0.00015438,2]
[395298081,1764597033135,-150.0,0.00015447,2]